bitfinex/quotes_ETHUSD_20260214
["timestamp","ask_amount","ask_price","bid_price","bid_amount"]
[1771068121617,2.2792986,2107.7,2105.4,0.506]
[1771068121950,1.907,2107.6,2105.5,30.0]
[1771068122313,6.83492552,2108.8,2105.9,2.13270523]
[1771068122514,2.09244236,2108.2,2105.4,30.0]
[1771068122724,2.19484236,2108.1,2106.0,8.376]
[1771068122932,2.757,2108.0,2106.1,30.0]
[1771068123127,1.18601451,2107.9,2106.0,1.771]
[1771068123327,0.1024,2107.5,2105.7,10.488]
[1771068123513,2.19484236,2107.5,2105.5,30.0]
[1771068123721,2.2792986,2107.4,2105.4,0.855]
[1771068123926,2.2792986,2107.4,2105.4,1.1874141]
[1771068124152,0.28925624,2107.3,2105.0,2.139]
[1771068124343,2.09244236,2107.0,2105.0,2.139]
[1771068124512,2.09244236,2106.6,2104.3,30.0]
[1771068124714,2.09244236,2106.6,2104.2,30.0]
[1771068124916,2.19484236,2106.4,2104.2,30.0]
[1771068125117,4.1343578,2106.3,2104.3,1.18804352]
[1771068125368,2.09244236,2105.7,2103.6,4.75358149]
[1771068125568,2.09244236,2105.7,2102.9,0.001]
[1771068125569,2.09244236,2105.2,2103.2,1.18866489]
[1771068125742,0.855,2105.1,2103.3,30.0]
[1771068125949,1.18691544,2106.3,2103.6,2.13270523]
[1771068126146,4.24744236,2106.2,2103.9,30.0]
[1771068126452,2.09244236,2106.1,2103.9,25.239]
[1771068126642,2.155,2106.2,2104.0,32.13270523]
[1771068126843,2.09244236,2106.1,2104.0,30.0]
[1771068127038,1.18708452,2106.0,2104.1,1.18815645]
[1771068127239,2.09244236,2105.9,2104.0,1.18818711]
[1771068127447,1.18708452,2106.0,2103.8,2.13270523]
[1771068127667,3.012,2105.9,2104.0,2.13270523]
[1771068127871,3.012,2105.9,2102.9,0.001]
[1771068127872,2.09244236,2105.7,2102.9,0.001]
[1771068128033,2.19484236,2105.1,2102.9,0.001]
[1771068128235,0.1024,2104.1,2101.8,2.13270523]
[1771068128474,2.936,2104.0,2101.9,24.179]
[1771068128672,10.37477506,2105.2,2102.0,2.98770523]
[1771068128830,2.19484236,2104.7,2102.4,21.242]
[1771068129031,2.09244236,2104.4,2102.5,0.03017102]
[1771068129235,4.20404352,2104.3,2102.3,30.0]
[1771068129434,4.20404352,2104.3,2102.4,0.03016671]
[1771068129635,4.20404352,2104.3,2102.5,30.0]
[1771068129868,4.20404352,2104.3,2102.3,2.13270523]
[1771068129869,2.16,2104.2,2102.6,0.03016384]
[1771068130076,3.015,2104.2,2102.6,0.03016384]
[1771068130582,1.18804352,2104.3,2102.7,0.0301624]
[1771068130737,3.013,2104.2,2102.3,30.0]
[1771068130935,3.013,2104.1,2102.5,28.85]
[1771068131173,3.013,2104.1,2102.2,5.44593541]
[1771068131174,1.18821292,2104.0,2102.2,4.25670523]
[1771068131356,1.18821292,2104.0,2102.0,0.855]
[1771068131357,3.28065528,2104.0,2102.3,0.42713258]
[1771068131714,3.013,2103.9,2102.5,30.0]
[1771068131973,3.013,2103.9,2102.1,3.46870523]
[1771068131974,0.855,2103.8,2102.1,3.46870523]
[1771068132182,0.855,2103.8,2102.2,3.69086152]
[1771068132340,1.18821292,2104.0,2102.3,0.42686152]
[1771068132341,3.013,2103.7,2102.3,0.42686152]
[1771068132541,3.013,2103.7,2102.4,0.42686152]
[1771068132737,3.013,2103.7,2102.5,0.42686152]
[1771068132984,3.013,2103.7,2102.1,1.336]
[1771068133294,1.18821292,2104.0,2102.1,1.336]
[1771068133295,6.84529407,2104.3,2102.3,1.18917376]
[1771068133451,6.84529407,2104.3,2102.4,0.42820537]
[1771068133452,2.155,2103.7,2102.4,0.42820537]
[1771068133652,2.155,2103.7,2102.5,0.42774385]
[1771068133887,2.155,2103.7,2102.2,8.601]
[1771068134094,2.155,2103.7,2102.3,0.42773146]
[1771068134399,2.155,2103.7,2102.2,0.001]
[1771068134400,0.855,2104.2,2102.7,30.0]
[1771068134552,0.855,2104.2,2102.8,0.42773146]
[1771068134752,4.75172249,2104.6,2103.0,30.0]
[1771068134976,5.60717411,2104.4,2103.1,0.42738724]
[1771068135197,7.69961647,2104.4,2102.3,6.172]
[1771068135360,7.69961647,2104.4,2102.4,0.4275948]
[1771068135591,2.09244236,2104.2,2102.2,0.001]
[1771068135993,2.09244236,2104.1,2102.2,0.001]
[1771068136223,2.09244236,2104.1,2102.3,30.0]
[1771068136224,3.009,2104.0,2102.3,30.0]
[1771068136444,3.009,2104.0,2102.2,0.001]
[1771068136895,2.09244236,2103.9,2102.2,0.001]
[1771068137103,4.75217411,2104.4,2102.6,2.13270523]
[1771068137427,6.84461647,2104.4,2102.2,0.001]
[1771068137586,6.84461647,2104.4,2102.3,1.1891326]
[1771068137925,2.09244236,2104.0,2102.2,0.001]
[1771068138135,3.008,2103.9,2102.2,0.001]
[1771068138495,2.09244236,2103.7,2102.2,0.001]
[1771068139205,1.18843886,2103.6,2102.2,0.001]
[1771068139594,3.28088122,2103.6,2102.2,0.001]
[1771068139836,1.18843886,2103.6,2102.2,0.001]
[1771068140205,3.005,2103.5,2102.2,0.001]
[1771068141238,1.18855186,2103.4,2102.2,0.001]
[1771068143537,1.18855186,2103.4,2102.3,7.58]
[1771068143740,1.18855186,2103.4,2102.4,0.03017936]
[1771068144337,4.19353701,2103.5,2102.5,0.03017792]
[1771068144525,3.005,2103.5,2102.5,0.03017792]
[1771068144720,2.143,2104.2,2102.6,30.0]
[1771068144921,2.143,2104.2,2102.2,0.001]
[1771068145122,2.143,2104.2,2102.4,30.0]
[1771068145324,1.18815645,2104.1,2102.5,1.18906064]
[1771068145524,1.18815645,2104.1,2102.7,30.0]
[1771068145730,1.18815645,2104.1,2102.6,2.13270523]
[1771068146143,4.75262582,2104.5,2102.5,1.18906064]
[1771068146144,1.18747921,2105.3,2103.0,2.13270523]
[1771068146353,1.71647921,2105.3,2103.2,2.13270523]
[1771068146620,1.71647921,2105.3,2103.8,2.13270523]
[1771068146816,0.003,2105.4,2104.1,30.0]
[1771068147048,1.19045061,2105.4,2104.4,30.0]
[1771068147230,1.19045061,2105.4,2104.5,1.18793062]
[1771068147231,0.003,2105.4,2104.5,1.18793062]
[1771068147839,0.003,2105.4,2104.6,2.13270523]
[1771068148040,0.003,2105.4,2104.8,30.0]
[1771068148247,0.003,2105.4,2104.6,2.313]
[1771068148459,0.003,2105.4,2104.3,2.13]
[1771068148619,0.003,2105.4,2104.2,3.32079466]
[1771068148821,0.003,2105.4,2103.9,4.75305727]
[1771068148822,0.003,2105.4,2103.5,1.18843886]
[1771068149071,0.003,2105.4,2103.6,25.386]
[1771068149225,1.19042281,2105.4,2103.7,3.3210876]
[1771068149544,1.19042281,2105.4,2104.0,32.13270523]
[1771068149728,1.19042281,2105.4,2104.2,32.13270523]
[1771068149925,1.19042281,2105.4,2104.3,30.0]
[1771068150121,1.19042281,2105.4,2104.2,2.13270523]
[1771068150351,1.19042281,2105.4,2103.9,2.737]
[1771068150569,2.09244236,2105.1,2103.0,1.18877793]
[1771068150773,1.37727905,2105.4,2102.3,3.61930213]
[1771068150774,2.09244236,2104.4,2102.3,3.61930213]
[1771068150945,2.998,2104.3,2102.5,2.13270523]
[1771068151143,2.142,2104.2,2102.6,2.092]
[1771068151446,1.18815645,2104.1,2102.7,30.0]
[1771068151844,1.18815645,2104.1,2102.3,2.988]
[1771068151845,1.18815645,2104.1,2102.3,23.70617376]
[1771068152177,1.18815645,2104.1,2102.4,30.0]
[1771068152484,1.18815645,2104.1,2102.5,2.41094763]
[1771068152683,1.18815645,2104.1,2102.6,4.54194763]
[1771068152846,1.18815645,2104.1,2102.8,30.0]
[1771068153042,1.18815645,2104.1,2102.8,27.028]
[1771068153242,1.18815645,2104.1,2102.9,1.18883446]
[1771068153445,1.18815645,2104.1,2103.0,30.42937656]
[1771068153642,4.75115649,2104.8,2103.3,1.98207041]
[1771068153643,1.18781774,2104.7,2103.3,1.98207041]
[1771068153943,4.75013156,2105.3,2103.7,31.98207041]
[1771068154143,1.18747921,2105.3,2104.0,31.98207041]
[1771068154360,1.18747921,2105.3,2104.2,30.0]
[1771068154669,1.19045259,2105.4,2104.4,30.0]
[1771068154869,1.19045259,2105.4,2104.5,0.42890238]
[1771068154870,0.003,2105.4,2104.5,0.42890238]
[1771068155085,1.475,2106.7,2104.8,30.0]
[1771068155249,1.18674641,2106.6,2104.9,1.61622464]
[1771068155449,1.18674641,2106.6,2104.8,3.3217469]
[1771068156181,1.18674641,2106.6,2104.7,5.60705792]
[1771068156182,1.18674641,2106.6,2104.7,0.856]
[1771068156503,1.18674641,2106.6,2104.7,2.04380725]
[1771068156714,1.18674641,2106.6,2104.8,30.0]
[1771068156871,1.18674641,2106.6,2104.8,3.78]
[1771068157071,2.994,2106.5,2104.8,3.78]
[1771068157266,2.994,2106.5,2104.7,2.04380725]
[1771068157509,1.18685909,2106.4,2104.7,2.04380725]
[1771068157807,1.18685909,2106.4,2104.3,2.955]
[1771068157808,11.40730115,2106.4,2104.3,2.955]
[1771068158096,0.18685624,2106.2,2104.3,30.0]
[1771068158298,1.18685909,2106.4,2104.5,1.98207041]
[1771068158509,1.18685909,2106.4,2104.8,1.98207041]
[1771068158669,4.17678398,2106.6,2105.2,1.98207041]
[1771068158992,4.17678398,2106.6,2105.4,27.107]
[1771068159194,4.17678398,2106.6,2103.7,1.42596816]
[1771068159195,4.17678398,2106.6,2105.0,1.98207041]
[1771068159384,8.2823327,2107.2,2104.2,1.29049999]
[1771068159385,1.18623962,2107.5,2105.3,3.16954962]
[1771068159584,2.991,2107.0,2105.4,7.164]
[1771068159764,2.991,2107.0,2105.0,2.132]
[1771068160095,1.93810936,2106.7,2104.2,0.855]
[1771068160393,2.03469216,2106.5,2104.3,30.0]
[1771068160570,2.991,2106.4,2104.3,22.333]
[1771068160770,2.03469216,2106.3,2104.3,2.777]
[1771068160989,2.03469216,2106.3,2104.0,3.17025848]
[1771068161186,2.03469216,2106.3,2104.1,16.405]
[1771068161391,2.03469216,2106.1,2104.1,16.405]
[1771068161589,1.18697179,2106.2,2103.9,0.001]
[1771068161590,2.2215484,2105.8,2103.9,0.001]
[1771068161809,2.03469216,2105.6,2103.9,0.001]
[1771068161979,2.137,2105.5,2103.9,0.001]
[1771068162189,1.37382803,2106.2,2103.9,0.001]
[1771068162190,1.18697179,2106.2,2104.3,30.0]
[1771068162496,1.18697179,2106.2,2104.6,30.0]
[1771068162805,1.18697179,2106.2,2104.7,2.05199462]
[1771068163106,1.18697179,2106.2,2104.3,22.576]
[1771068163287,1.18697179,2106.2,2103.9,3.32524227]
[1771068163608,2.03469216,2106.1,2104.0,3.289]
[1771068163996,2.993,2106.0,2104.1,30.0]
[1771068164886,2.993,2106.0,2104.2,2.05199462]
[1771068165190,2.993,2106.0,2104.3,15.077]
[1771068165398,1.18714088,2105.9,2104.4,1.18798707]
[1771068165608,0.855,2105.8,2104.3,1.1880291]
[1771068165925,0.855,2105.8,2103.9,0.001]
[1771068165926,2.03469216,2105.7,2103.9,0.001]
[1771068166113,2.03469216,2105.5,2103.9,0.001]
[1771068167530,1.18742281,2105.4,2103.9,0.001]
[1771068168025,2.991,2105.3,2103.9,0.001]
[1771068168210,2.03469216,2105.2,2103.2,30.0]
[1771068168411,2.03469216,2105.2,2102.9,3.78999462]
[1771068168613,2.03469216,2105.2,2103.1,15.561]
[1771068168818,2.03469216,2105.2,2102.9,1.18881155]
[1771068169124,2.03469216,2105.0,2102.5,30.0]
[1771068169363,2.03469216,2104.9,2102.6,0.42974705]
[1771068169528,2.03469216,2104.6,2102.2,0.856]
[1771068169730,2.03469216,2104.4,2102.4,30.0]
[1771068169899,2.03469216,2104.4,2102.2,2.04519061]
[1771068170100,2.2215484,2104.3,2102.2,0.001]
[1771068170312,2.13709216,2104.0,2102.2,0.001]
[1771068170656,2.988,2103.9,2102.2,0.001]
[1771068170852,2.03469216,2104.3,2102.3,30.0]
[1771068171141,2.988,2103.8,2102.2,1.1902292]
[1771068171343,2.988,2103.8,2102.3,28.03]
[1771068171542,1.18838237,2103.7,2102.4,1.18911719]
[1771068172120,1.18838237,2103.7,2102.2,1.19022561]
[1771068172441,1.18838237,2103.7,2102.2,3.24222023]
[1771068173015,1.18838237,2103.7,2102.3,0.001]
[1771068173244,4.75352949,2103.9,2102.6,30.0]
[1771068173245,4.75311186,2103.9,2102.6,30.0]
[1771068173445,4.75311186,2103.9,2102.3,0.001]
[1771068173446,4.1753605,2103.8,2102.3,0.001]
[1771068173646,6.21005266,2103.8,2102.3,0.001]
[1771068174417,4.1753605,2103.8,2102.3,0.001]
[1771068178884,6.21005266,2103.8,2102.3,0.001]
[1771068179028,2.03469216,2103.7,2102.3,0.001]
[1771068179622,1.18843886,2103.6,2102.3,0.001]
[1771068179849,2.03469216,2103.5,2102.3,0.001]
[1771068180248,2.03469216,2103.5,2101.9,0.0011]
[1771068180839,2.03469216,2103.3,2101.9,0.0011]
[1771068181045,1.91518286,2103.1,2101.9,0.0011]
[1771068181244,2.977,2103.0,2101.2,1.18976601]
[1771068181650,2.977,2103.0,2100.9,2.05199462]
[1771068181949,2.977,2103.0,2100.6,0.856]
[1771068181950,1.91518286,2102.8,2100.6,1.92929634]
[1771068182274,4.89018286,2102.7,2100.8,1.92929634]
[1771068182584,1.91518286,2102.4,2100.3,6.69049055]
[1771068183479,1.91518286,2102.3,2100.3,6.69049055]
[1771068183778,1.1892869,2102.1,2100.7,1.19007949]
[1771068184074,1.1892869,2102.1,2100.6,3.11939228]
[1771068184247,1.1892869,2102.1,2100.7,30.0]
[1771068184441,1.1892869,2102.1,2100.8,1.92929634]
[1771068184647,2.975,2102.0,2100.8,1.92929634]
[1771068185365,2.975,2102.0,2100.6,1.19009594]
[1771068185749,1.18940006,2101.9,2100.4,1.19024947]
[1771068186379,0.856,2102.0,2100.6,30.0]
[1771068186587,2.117,2101.9,2100.9,1.92929634]
[1771068187793,1.18945665,2101.8,2101.0,1.18990956]
[1771068187995,3.30640658,2101.9,2101.0,3.1192059]
[1771068188212,2.117,2101.9,2101.1,1.92929634]
[1771068188773,3.3064105,2101.9,2101.1,1.92929634]
[1771068189090,3.3064105,2101.9,2101.0,1.18990956]
[1771068189091,2.117,2101.9,2101.2,1.92929634]
[1771068189399,0.856,2102.8,2101.5,31.92929634]
[1771068189578,2.968,2102.8,2101.7,10.476]
[1771068189781,2.968,2102.8,2101.0,3.9752059]
[1771068190095,4.15691759,2102.8,2101.4,30.0]
[1771068190497,4.15691759,2102.8,2101.3,30.0]
[1771068190673,4.15691759,2102.8,2101.2,1.1897963]
[1771068191086,1.91518286,2102.7,2101.1,1.18981548]
[1771068191915,1.18906064,2102.5,2101.3,1.18973968]
[1771068192584,4.15306064,2102.5,2101.3,1.18973968]
[1771068194099,4.15306064,2102.5,2101.0,0.856]
[1771068194100,6.0682435,2102.5,2101.1,1.18985293]
[1771068194699,1.18906064,2102.5,2101.2,30.0]
[1771068194891,1.18906064,2102.5,2101.1,1.18985293]
[1771068194892,2.961,2102.4,2101.1,1.18985293]
[1771068195780,1.18906064,2102.5,2101.1,1.18985293]
[1771068195980,1.18917376,2102.3,2101.0,30.0]
[1771068196202,1.18917376,2102.3,2100.8,30.0]
[1771068196507,1.18917376,2102.3,2100.7,4.75941173]
[1771068196508,1.18917376,2102.3,2101.0,30.0]
[1771068196725,1.18917376,2102.3,2100.7,4.75941173]
[1771068196880,1.18917376,2102.3,2100.8,30.0]
[1771068197205,1.18917376,2102.3,2100.8,15.346]
[1771068197405,1.18917376,2102.3,2100.9,1.92929634]
[1771068197905,3.10435662,2102.3,2100.9,1.1899662]
[1771068198206,1.91518286,2102.2,2100.6,4.7604935]
[1771068198610,2.957,2102.1,2100.6,4.7604935]
[1771068198807,4.87218286,2102.1,2100.6,4.7604935]
[1771068198987,4.87218286,2102.1,2100.7,30.0]
[1771068199327,4.87218286,2102.1,2100.6,4.7604935]
[1771068199481,1.91518286,2102.0,2100.6,1.19013615]
[1771068199688,2.957,2102.1,2100.6,1.19013615]
[1771068200112,1.18934348,2102.0,2100.6,30.0]
[1771068200692,1.18917376,2102.3,2100.7,1.92929634]
[1771068200894,0.856,2102.1,2100.8,30.0]
[1771068201215,1.18917376,2102.3,2100.7,1.92929634]
[1771068201523,2.953,2102.2,2100.5,6.69090018]
[1771068201683,2.953,2102.2,2100.6,30.0]
[1771068202007,2.953,2102.2,2101.0,3.1192059]
[1771068202188,2.953,2102.2,2101.2,30.0]
[1771068202502,4.75749277,2102.4,2101.2,30.0]
[1771068202503,1.19014806,2102.4,2101.2,30.0]
[1771068202816,0.001,2102.4,2101.2,30.0]
[1771068202985,1.19012388,2102.4,2101.2,30.0]
[1771068203186,0.001,2102.4,2101.2,30.0]
[1771068203391,1.19012236,2102.4,2101.3,30.0]
[1771068203618,0.001,2102.4,2101.4,30.0]
[1771068203986,0.001,2102.4,2101.5,1.18962645]
[1771068204397,0.001,2102.4,2101.6,30.0]
[1771068205086,0.001,2102.4,2101.7,31.92929634]
[1771068205294,1.18860837,2103.3,2101.9,1.92929634]
[1771068205488,1.18860837,2103.3,2101.6,30.0]
[1771068205489,2.945,2103.2,2101.6,30.0]
[1771068205799,2.945,2103.2,2101.9,30.0]
[1771068206198,1.18872141,2103.1,2102.1,30.0]
[1771068206519,1.18844272,2103.6,2102.2,30.0]
[1771068207017,2.943,2103.7,2102.5,30.0]
[1771068207227,4.13139122,2103.7,2102.5,30.0]
[1771068207391,4.13139122,2103.7,2102.0,1.18934348]
[1771068207718,2.943,2103.7,2102.4,31.92929634]
[1771068207904,2.943,2103.7,2102.6,1.92929634]
[1771068208104,1.1882774,2103.9,2102.8,1.188891]
[1771068208308,1.1882774,2103.9,2102.9,30.0]
[1771068208618,2.463,2104.0,2102.9,30.0]
[1771068208922,3.6512132,2104.0,2102.8,1.188891]
[1771068209803,5.56639606,2104.0,2102.8,1.188891]
[1771068210208,5.56639606,2104.0,2102.6,4.755564]
[1771068210527,5.56639606,2104.0,2102.7,12.531]
[1771068210732,3.6512132,2104.0,2102.7,11.409]
[1771068210928,3.6512132,2104.0,2102.7,10.967]
[1771068211129,5.56639606,2104.0,2102.6,4.755564]
[1771068211329,3.6512132,2104.0,2102.7,30.0]
[1771068211712,3.6512132,2104.0,2102.7,29.132]
[1771068212099,3.6512132,2104.0,2102.7,16.675]
[1771068212525,2.08,2103.9,2102.8,1.188891]
[1771068212727,2.936,2103.9,2102.8,1.188891]
[1771068213438,2.936,2103.9,2102.5,1.18906064]
[1771068213439,4.79327575,2103.9,2102.5,1.18906064]
[1771068213611,1.85727575,2103.8,2102.5,1.18906064]
[1771068214040,1.85727575,2103.8,2102.4,1.18907325]
[1771068214529,1.85727575,2103.8,2102.3,6.85552176]
[1771068214530,1.85727575,2103.6,2102.1,21.657]
[1771068214734,1.85727575,2103.6,2102.1,7.169]
[1771068214938,1.85727575,2103.6,2102.1,3.15]
[1771068215303,1.85727575,2103.6,2102.1,2.035]
[1771068215505,1.85727575,2103.6,2102.1,30.0]
[1771068215734,1.85727575,2103.6,2102.0,1.18934348]
[1771068218020,1.85727575,2103.4,2101.8,1.18945665]
[1771068218343,1.85727575,2103.4,2101.6,1.18956025]
[1771068218641,1.85727575,2103.2,2101.1,2.364]
[1771068218837,1.85727575,2103.0,2101.1,2.364]
[1771068219221,1.85727575,2103.0,2101.0,1.18990956]
[1771068220341,1.78056904,2102.8,2100.8,4.75963826]
[1771068220645,1.18883446,2102.9,2101.4,31.83247287]
[1771068220646,0.856,2102.7,2101.4,31.83247287]
[1771068220935,0.856,2102.7,2101.5,17.831]
[1771068221112,2.922,2102.8,2101.5,17.831]
[1771068221313,2.922,2102.8,2101.2,30.0]
[1771068221514,2.922,2102.8,2101.5,1.83247287]
[1771068221710,2.922,2102.8,2101.6,30.0]
[1771068221966,1.01668286,2102.8,2101.8,30.0]
[1771068222112,1.18832588,2103.8,2102.1,30.83500852]
[1771068222312,7.15467445,2104.1,2102.4,1.18911719]
[1771068222313,1.18821292,2104.0,2102.4,1.18911719]
[1771068222512,1.18821292,2104.0,2102.5,30.0]
[1771068223112,1.78056904,2103.9,2102.5,22.454]
[1771068223313,1.78056904,2103.9,2101.9,1.18940006]
[1771068223515,1.78056904,2103.9,2102.0,30.0]
[1771068224442,1.78056904,2103.7,2102.1,1.1892869]
[1771068224746,1.78056904,2103.7,2102.2,30.0]
[1771068225247,1.78056904,2103.7,2101.6,1.19062925]
[1771068225432,1.78056904,2103.5,2101.6,0.0011]
[1771068225615,1.78056904,2103.3,2101.6,1.19066703]
[1771068225838,2.064,2103.4,2101.6,0.0011]
[1771068225839,1.78056904,2103.1,2101.6,0.0011]
[1771068226349,1.78056904,2103.1,2101.6,1.19065932]
[1771068226536,1.78056904,2102.9,2101.7,0.04439815]
[1771068226738,4.70056904,2102.8,2101.6,0.04549815]
[1771068226946,1.78056904,2102.7,2101.6,0.0011]
[1771068227271,1.78056904,2102.7,2101.6,0.04617751]
[1771068227637,1.78056904,2102.7,2101.6,0.0011]
[1771068228459,1.18900409,2102.6,2101.6,0.0011]
[1771068229870,1.78056904,2102.5,2101.6,0.0011]
[1771068230454,6.53605891,2102.9,2101.6,0.0011]
[1771068230656,1.188891,2102.8,2101.6,0.0011]
[1771068231048,2.96946004,2102.8,2101.6,0.0011]
[1771068231484,3.24987285,2102.9,2101.7,30.0]
[1771068231659,3.24987285,2102.9,2101.6,0.0011]
[1771068231865,1.78056904,2102.8,2101.6,0.0011]
[1771068232659,1.78056904,2102.6,2101.6,0.0011]
[1771068234765,1.78056904,2102.4,2101.6,0.0011]
[1771068237003,2.9697428,2102.3,2101.6,0.0011]
[1771068237278,1.78056904,2102.1,2101.6,0.0011]
[1771068238186,2.911,2102.2,2101.6,0.0011]
[1771068238797,1.1892869,2102.1,2101.6,0.0011]
[1771068239793,1.78056904,2102.0,2101.6,0.0011]
[1771068240503,1.78056904,2102.0,2101.3,0.0011]
[1771068240918,1.78056904,2101.8,2100.5,0.001]
[1771068241118,1.78056904,2101.8,2100.5,1.19118414]
[1771068241514,1.18936835,2102.0,2100.6,30.0]
[1771068241820,4.97334647,2102.0,2100.6,30.0]
[1771068242014,1.72597812,2101.9,2100.6,4.612]
[1771068242310,1.72597812,2101.9,2100.5,1.19118414]
[1771068242810,1.72597812,2101.9,2100.6,30.0]
[1771068242987,2.91543477,2101.8,2100.7,1.19007949]
[1771068243588,1.72597812,2101.7,2100.7,1.19007949]
[1771068245385,1.72597812,2101.7,2100.6,30.0]
[1771068245596,2.9154999,2101.7,2100.6,30.0]
[1771068245818,1.72597812,2101.7,2100.6,30.0]
[1771068246202,2.9154942,2101.7,2100.6,30.0]
[1771068246403,2.91549679,2101.7,2100.6,30.0]
[1771068246916,4.97335753,2102.0,2100.6,30.0]
[1771068247117,1.72597812,2101.9,2100.6,30.0]
[1771068247288,1.72597812,2101.9,2100.7,1.19007949]
[1771068247487,2.91529818,2102.1,2100.8,30.0]
[1771068248206,1.72597812,2102.0,2100.8,30.0]
[1771068248710,0.856,2102.7,2101.0,0.72738358]
[1771068248910,1.72597812,2102.5,2101.1,32.085]
[1771068249114,1.72597812,2102.5,2101.2,30.0]
[1771068249424,1.72597812,2102.5,2101.4,30.0]
[1771068249625,2.91503941,2102.5,2101.4,26.574]
[1771068249923,2.91504738,2102.5,2101.4,26.574]
[1771068250123,1.72597812,2102.4,2101.3,1.18973968]
[1771068251218,1.18906926,2102.5,2101.3,1.18973968]
[1771068251219,0.001,2102.3,2101.3,1.18973968]
[1771068251424,1.72597812,2102.2,2101.3,1.18973968]
[1771068251634,1.72597812,2102.2,2101.2,4.75895873]
[1771068251635,2.054,2102.2,2101.2,4.75895873]
[1771068251811,2.054,2102.2,2101.3,30.0]
[1771068252210,2.0450642,2102.5,2101.3,30.0]
[1771068252414,1.72597812,2102.4,2101.4,2.087]
[1771068252611,0.856,2102.5,2101.4,2.087]
[1771068252612,0.856,2102.5,2101.5,27.461]
[1771068252818,2.58197812,2102.5,2101.5,11.646]
[1771068253338,2.58197812,2102.5,2101.5,17.363]
[1771068253629,2.58197812,2102.5,2101.6,1.18956985]
[1771068254004,1.188891,2102.8,2101.6,1.18956985]
[1771068254205,2.91486912,2102.8,2101.6,1.18956985]
[1771068254605,1.72597812,2102.7,2101.6,1.18956985]
[1771068255139,3.23879218,2103.0,2101.7,30.0]
[1771068255299,1.72597812,2102.9,2101.7,2.672]
[1771068255633,1.72597812,2102.9,2101.6,1.18956985]
[1771068255634,1.72597812,2102.9,2101.8,2.084]
[1771068255853,1.72597812,2102.7,2101.9,1.18940006]
[1771068256434,2.05,2103.0,2101.9,1.18940006]
[1771068256614,2.05,2103.0,2102.0,30.0]
[1771068256937,1.72597812,2102.9,2101.9,1.18940006]
[1771068257307,1.72597812,2102.9,2102.0,30.0]
[1771068257508,1.72597812,2102.9,2102.0,22.942]
[1771068257935,1.72597812,2102.9,2102.1,1.1892869]
[1771068259106,0.001,2103.1,2102.2,30.0]
[1771068259306,0.001,2103.1,2102.3,2.08]
[1771068259907,0.001,2103.1,2102.4,1.18911719]
[1771068260104,1.72697812,2103.1,2102.3,1.18913737]
[1771068260337,1.72697812,2103.1,2102.0,1.18934348]
[1771068260508,1.72597812,2102.9,2101.3,0.856]
[1771068260710,1.72597812,2102.9,2101.5,13.551]
[1771068261542,1.72597812,2102.9,2101.6,8.47729893]
[1771068261749,1.72597812,2102.9,2101.8,30.0]
[1771068262041,1.72597812,2102.8,2101.9,1.18940006]
[1771068263413,4.75598703,2103.1,2102.0,30.0]
[1771068263414,1.18972179,2103.1,2102.0,30.0]
[1771068263816,1.72697812,2103.1,2102.0,30.0]
[1771068264017,2.9157,2103.1,2102.1,1.1892869]
[1771068264443,1.72597812,2103.0,2102.1,1.1892869]
[1771068265161,1.72597812,2103.0,2102.0,1.18929977]
[1771068266166,1.72597812,2102.8,2101.9,4.75751104]
[1771068266331,1.72597812,2102.8,2101.8,4.75773534]
[1771068268319,2.91487804,2102.8,2101.8,4.75773534]
[1771068269047,1.72597812,2102.7,2101.8,4.75773534]
[1771068269250,1.62597812,2102.7,2101.7,4.75795093]
[1771068270357,1.62597812,2102.7,2101.8,30.0]
[1771068270860,2.91485662,2102.9,2101.8,30.0]
[1771068271350,1.63118033,2102.8,2101.8,2.122]
[1771068271524,1.63118033,2102.8,2101.8,2.629]
[1771068271727,1.63118033,2102.8,2101.8,3.3]
[1771068271919,1.63118033,2102.8,2101.7,4.75795093]
[1771068272127,1.18894754,2102.7,2101.7,4.75795093]
[1771068272325,1.63118033,2102.6,2101.7,4.75795093]
[1771068272744,1.63118033,2102.6,2101.6,2.078]
[1771068272953,1.63118033,2102.6,2101.6,3.26754155]
[1771068273118,1.63118033,2102.6,2101.5,1.18960865]
[1771068273324,1.63118033,2102.6,2101.4,2.04567165]
[1771068274056,1.63118033,2102.6,2101.3,1.18971222]
[1771068274257,1.63118033,2102.6,2101.1,4.75940239]
[1771068274258,1.63118033,2102.4,2101.1,4.75940239]
[1771068274440,1.63118033,2102.4,2101.2,30.0]
[1771068274634,1.63118033,2102.4,2101.1,4.75940239]
[1771068276353,1.63118033,2102.2,2101.1,4.75940239]
[1771068276658,1.63118033,2102.2,2101.2,6.67]
[1771068277151,1.63118033,2102.2,2101.1,4.75940239]
[1771068277152,1.63118033,2102.2,2101.1,6.83340239]
[1771068277463,1.63118033,2102.2,2101.2,4.723]
[1771068277633,2.04498288,2102.7,2101.4,30.0]
[1771068277833,3.67616321,2102.7,2101.4,30.0]
[1771068278345,0.856,2102.7,2101.6,30.0]
[1771068278542,0.856,2102.7,2101.7,2.075]
[1771068278761,0.856,2102.7,2101.8,30.0]
[1771068279629,3.67613006,2102.7,2101.8,4.718]
[1771068279955,3.67613006,2102.7,2101.8,3.394]
[1771068280270,3.67613006,2102.7,2101.7,2.077]
[1771068280556,1.74478717,2102.6,2101.8,1.18945665]
[1771068282767,2.93380224,2102.6,2101.8,1.18945665]
[1771068283067,1.74478717,2102.5,2101.7,2.077]
[1771068283242,1.74478717,2102.5,2101.7,3.26647699]
[1771068283951,1.74478717,2102.5,2101.4,1.18968306]
[1771068284667,1.74478717,2102.3,2101.3,4.75886289]
[1771068285910,6.77346879,2102.6,2101.4,30.0]
[1771068285911,1.74478717,2102.6,2101.4,30.0]